[Event "LAT-chT Higher League 2019"]
[Site "Riga"]
[Date "2019.10.12"]
[Round "7.8"]
[White "Golubovskis, Maksims"]
[Black "Zuckovs, Aleksejs"]
[Result "0-1"]
[ECO "B01"]
[WhiteElo "2078"]
[BlackElo "2328"]
[Annotator "NA"]
[PlyCount "90"]
[EventDate "2019.02.15"]
[EventType "team-tourn"]
[EventCountry "LAT"]
[SourceTitle "playchess.com"]
[Source "ChessBase"]
[SourceQuality "1"]
[TimeControl "40/5400+30:1800+30"]

1. e4 {[%emt 0:00:10]} d5 {[%emt 0:02:35]} 2. exd5 {[%emt 1:30:50]} Qxd5 3. Nc3 {[%emt 0:00:00]} Qa5 {[%emt 0:00:01]} 4. d4 {[%emt 0:00:00]} Nf6 {[%emt 0:00:05]} 5. Nf3 {[%emt 0:00:00]} Bg4 {[%emt 0:00:32]} 6. h3 {[%emt 0:00:00]} Bh5 {[%emt 0:00:02]} 7. g4 {[%emt 0:00:00]} Bg6 {[%emt 0:00:01]} 8. Ne5 {[%emt 0:00:00]} Nbd7 {[%emt 0:00:19]} 9. Nc4 {[%emt 0:00:00]} Qa6 {[%emt 0:00:01]} 10. Bf4 {[%emt 0:00:00]} Qe6+ {[%emt 0:00:01]} 11. Ne3 {[%emt 0:00:00]} Qb6 {[%emt 0:00:02]} 12. Nb5 {[%emt 0:00:00]} Rc8 {[%emt 0:00:14]} 13. c4 {[%emt 0:00:00]} a6 {[%emt 0:26:26]} 14. c5 {[%emt 0:00:00]} Qc6 {[%emt 0:00:37]} 15. Na7 {[%emt 0:00:00]} Qxh1 {[%emt 0:00:11]} 16. Nxc8 {[%emt 0:00:00]} Nd5 {[%emt 0:10:43]} 17. Nxd5 {[%emt 0:00:00]} Qxd5 {[%emt 0:00:33]} 18. Be2 {[%emt 0:00:00]} e5 {[%emt 0:08:38]} 19. dxe5 {[%emt 0:00:00]} Qh1+ {[%emt 0:00:18]} 20. Bf1 {[%emt 0:00:00]} Qe4+ {[%emt 0:00:25]} 21. Be3 {[%emt 0:00:00]} Bxc5 {[%emt 0:09:38]} 22. Qe2 {[%emt 0:00:00]} Bb4+ {[%emt 0:20:28]} 23. Kd1 {[%emt 0:00:00]} Qd5+ {[%emt 0:02:53]} 24. Kc1 {[%emt 0:00:00]} O-O {[%emt 0:02:58]} 25. f4 {[%emt 0:00:00]} Rxc8 {[%emt 0:03:54]} 26. f5 {[%emt 0:00:00]} Qxe5 {[%emt 0:00:33]} 27. fxg6 {[%emt 0:00:00]} hxg6 {[%emt 0:00:06]} 28. Bf2 {[%emt 0:00:00]} Qd5 {[%emt 0:02:50]} 29. Qd3 {[%emt 0:00:00]} Qc6+ {[%emt 0:00:32]} 30. Qc4 {[%emt 0:00:00]} Qf6 {[%emt 0:02:45]} 31. Qe2 {[%emt 0:02:33]} Bc5 {[%emt 0:01:37]} 32. Bg3 {[%emt 0:00:17]} Bd6 {[%emt 0:00:05]} 33. Be1 {[%emt 0:00:16]} Qg5+ {[%emt 0:00:27]} 34. Kc2 {[%emt 0:00:17]} Nf6 {[%emt 0:00:16]} 35. Rd1 {[%emt 0:02:14]} Re8 {[%emt 0:00:08]} 36. Qf3 {[%emt 0:00:18]} Qf4 {[%emt 0:00:57]} 37. Qxf4 {[%emt 0:01:46]} Bxf4 {[%emt 0:00:01]} 38. Bc3 {[%emt 0:00:29]} Be5 {[%emt 0:01:10]} 39. Bb4 {[%emt 0:00:08]} c6 {[%emt 0:01:28]} 40. Bc4 {[%emt 0:00:21]} b5 {[%emt 0:00:19]} 41. Bb3 {[%emt 0:30:05]} c5 {[%emt 0:30:08]} 42. Bxc5 {[%emt 0:03:00]} Rc8 {[%emt 0:00:00]} 43. Bxf7+ {[%emt 0:00:01]} Kxf7 {[%emt 0:00:13]} 44. b4 {[%emt 0:00:01]} Ke6 {[%emt 0:00:47]} 45. Kb1 {[%emt 0:00:17]} Ne4 {[%emt 0:00:21]} 0-1

[Event "LAT-chT Higher League 2019"]
[Site "Riga"]
[Date "2019.10.12"]
[Round "7.9"]
[White "Gudovskis, Konstantins"]
[Black "Jazdanovs, Aleksandrs"]
[Result "0-1"]
[ECO "A31"]
[WhiteElo "2012"]
[BlackElo "2209"]
[Annotator "NA"]
[PlyCount "116"]
[EventDate "2019.02.15"]
[EventType "team-tourn"]
[EventCountry "LAT"]
[SourceTitle "playchess.com"]
[Source "ChessBase"]
[SourceQuality "1"]
[TimeControl "40/5400+30:1800+30"]

1. d4 {[%emt 0:00:00]} Nf6 {[%emt 0:00:47]} 2. c4 {[%emt 0:00:08]} c5 {[%emt 0:00:24]} 3. Nf3 {[%emt 0:00:24]} cxd4 {[%emt 0:00:32]} 4. Nxd4 {[%emt 0:00:05]} b6 {[%emt 0:00:17]} 5. Nc3 {[%emt 0:01:26]} Bb7 {[%emt 0:02:26]} 6. f3 {[%emt 0:01:31]} e6 {[%emt 0:01:36]} 7. e4 {[%emt 0:00:43]} d6 {[%emt 0:00:10]} 8. Be3 {[%emt 0:03:27]} Be7 {[%emt 0:01:41]} 9. Qd2 {[%emt 0:00:22]} a6 {[%emt 0:01:52]} 10. Be2 {[%emt 0:03:27]} Nbd7 {[%emt 0:03:12]} 11. O-O {[%emt 0:01:44]} Rc8 {[%emt 0:01:22]} 12. Rac1 {[%emt 0:05:44]} O-O {[%emt 0:03:25]} 13. Rfd1 {[%emt 0:03:29]} Re8 {[%emt 0:06:53]} 14. Bf1 {[%emt 0:03:06]} Qc7 {[%emt 0:05:39]} 15. Qf2 {[%emt 0:17:13]} Qb8 {[%emt 0:02:11]} 16. Nc2 {[%emt 0:08:53]} Ne5 {[%emt 0:05:38]} 17. Na3 {[%emt 0:05:23]} d5 {[%emt 0:02:35]} 18. cxd5 {[%emt 0:29:29]} Neg4 {[%emt 0:00:42]} 19. fxg4 {[%emt 0:00:05]} Nxg4 {[%emt 0:00:05]} 20. Qf4 {[%emt 0:00:03]} Nxe3 {[%emt 0:00:13]} 21. Qxb8 {[%emt 0:00:16]} Rxb8 {[%emt 0:00:07]} 22. Re1 {[%emt 0:03:14]} Bc5 {[%emt 0:02:09]} 23. Kh1 {[%emt 0:02:54]} exd5 {[%emt 0:01:08]} 24. exd5 {[%emt 0:01:34]} Ra8 {[%emt 0:06:35]} 25. Nc4 {[%emt 0:03:17]} Nxd5 {[%emt 0:00:28]} 26. Rxe8+ {[%emt 0:01:14]} Rxe8 {[%emt 0:00:06]} 27. Na4 {[%emt 0:00:14]} Rc8 {[%emt 0:01:44]} 28. Nxc5 {[%emt 0:00:28]} Rxc5 {[%emt 0:00:42]} 29. Re1 {[%emt 0:01:13]} Bc6 {[%emt 0:03:07]} 30. Ne5 {[%emt 0:01:34]} Bb5 {[%emt 0:00:26]} 31. Bxb5 {[%emt 0:00:44]} Rxb5 {[%emt 0:00:17]} 32. Nc4 {[%emt 0:00:59]} g6 {[%emt 0:02:58]} 33. Kg1 {[%emt 0:00:19]} Rc5 {[%emt 0:00:14]} 34. b3 {[%emt 0:00:51]} b5 {[%emt 0:00:11]} 35. Ne3 {[%emt 0:01:06]} Nxe3 {[%emt 0:00:17]} 36. Rxe3 {[%emt 0:01:21]} Rc1+ {[%emt 0:00:04]} 37. Kf2 {[%emt 0:00:00]} Rc2+ {[%emt 0:00:05]} 38. Kf3 {[%emt 0:00:00]} Rxa2 {[%emt 0:00:09]} 39. Re8+ {[%emt 0:00:23]} Kg7 {[%emt 0:00:07]} 40. Ra8 {[%emt 0:00:07]} a5 {[%emt 0:00:16]} 41. h4 {[%emt 0:30:55]} Ra3 {[%emt 0:30:24]} 42. Kf2 {[%emt 0:00:34]} h5 {[%emt 0:00:44]} 43. Ra6 {[%emt 0:00:13]} Rxb3 {[%emt 0:01:03]} 44. Rxa5 {[%emt 0:00:08]} Kf6 {[%emt 0:00:02]} 45. Ra7 {[%emt 0:00:44]} Ke6 {[%emt 0:00:50]} 46. g3 {[%emt 0:00:34]} f6 {[%emt 0:00:17]} 47. Kg2 {[%emt 0:00:56]} Kf5 {[%emt 0:00:23]} 48. Kh3 {[%emt 0:00:16]} Rb1 {[%emt 0:00:19]} 49. Ra5 {[%emt 0:00:49]} Ke5 {[%emt 0:01:31]} 50. Kg2 {[%emt 0:00:18]} Rb2+ {[%emt 0:00:23]} 51. Kh3 {[%emt 0:00:41]} Kd4 {[%emt 0:03:19]} 52. Ra8 {[%emt 0:00:36]} b4 {[%emt 0:00:52]} 53. Rg8 {[%emt 0:00:25]} b3 {[%emt 0:00:19]} 54. Rxg6 {[%emt 0:00:05]} Rf2 {[%emt 0:00:43]} 55. Rg8 {[%emt 0:00:20]} b2 {[%emt 0:00:22]} 56. Rb8 {[%emt 0:00:06]} Kc3 {[%emt 0:00:06]} 57. Rc8+ {[%emt 0:01:43]} Kd2 {[%emt 0:00:24]} 58. Rb8 {[%emt 0:00:13]} Kc1 {[%emt 0:00:07]} 0-1

[Event "LAT-chT Higher League 2019"]
[Site "Riga"]
[Date "2019.10.12"]
[Round "7.11"]
[White "Migunovs, Andrejs"]
[Black "Volodin, Aleksandr"]
[Result "0-1"]
[ECO "D02"]
[WhiteElo "1908"]
[BlackElo "2491"]
[Annotator "ChessBase"]
[PlyCount "94"]
[EventDate "2019.02.15"]
[EventType "team-tourn"]
[EventCountry "LAT"]
[SourceTitle "playchess.com"]
[Source "ChessBase"]
[SourceQuality "1"]
[TimeControl "40/5400+30:1800+30"]

1. d4 {[%emt 0:00:00]} Nf6 {[%emt 0:00:00]} 2. Bf4 {[%emt 0:00:00]} c5 {[%emt 0:04:06]} 3. e3 {[%emt 0:02:34]} e6 {[%emt 0:00:36]} 4. c3 {[%emt 0:01:26]} Nc6 {[%emt 0:00:23]} 5. Nf3 {[%emt 0:02:55]} Be7 {[%emt 0:01:30]} 6. h3 {[%emt 0:00:25]} d5 {[%emt 0:00:22]} 7. Nbd2 {[%emt 0:00:51]} Bd6 {[%emt 0:00:40]} 8. Ne5 {[%emt 0:05:22]} Qc7 {[%emt 0:00:24]} 9. Ndf3 {[%emt 0:02:23]} Nd7 {[%emt 0:05:13]} 10. Bb5 {[%emt 0:12:35]} O-O {[%emt 0:00:45]} 11. Bxc6 {[%emt 0:01:33]} bxc6 {[%emt 0:00:10]} 12. O-O {[%emt 0:00:10]} f6 {[%emt 0:07:13]} 13. Nxd7 {[%emt 0:00:36]} Bxd7 {[%emt 0:00:17]} 14. Bxd6 {[%emt 0:00:19]} Qxd6 {[%emt 0:00:06]} 15. c4 {[%emt 0:00:29]} cxd4 {[%emt 0:02:02]} 16. Qxd4 {[%emt 0:02:08]} e5 {[%emt 0:06:01]} 17. Qd2 {[%emt 0:00:12]} Rfd8 {[%emt 0:00:29]} 18. Rac1 {[%emt 0:02:22]} Be8 {[%emt 0:03:19]} 19. cxd5 {[%emt 0:03:14]} cxd5 {[%emt 0:02:10]} 20. Qa5 {[%emt 0:00:22]} Rab8 {[%emt 0:15:58]} 21. Rc2 {[%emt 0:17:32]} a6 {[%emt 0:00:54]} 22. Rfc1 {[%emt 0:02:04]} Rb5 {[%emt 0:14:44]} 23. Qc7 {[%emt 0:01:45]} Qxc7 {[%emt 0:04:35]} 24. Rxc7 {[%emt 0:00:04]} Rxb2 {[%emt 0:00:33]} 25. Ra7 {[%emt 0:00:06]} Rd7 {[%emt 0:02:46]} 26. Rxa6 {[%emt 0:00:20]} Bg6 {[%emt 0:01:10]} 27. Rd1 {[%emt 0:04:44]} Be4 {[%emt 0:01:09]} 28. Rd2 {[%emt 0:00:47]} Rb1+ {[%emt 0:01:27]} 29. Kh2 {[%emt 0:00:08]} Kf7 {[%emt 0:01:41]} 30. a4 {[%emt 0:00:23]} Ra1 {[%emt 0:00:04]} 31. Kg3 {[%emt 0:01:09]} h5 {[%emt 0:01:18]} 32. a5 {[%emt 0:00:52]} Ra4 {[%emt 0:00:52]} 33. Ne1 {[%emt 0:00:53]} h4+ {[%emt 0:01:05]} 34. Kh2 {[%emt 0:00:21]} Ra1 {[%emt 0:00:32]} 35. f3 {[%emt 0:03:16]} Rxe1 {[%emt 0:04:48]} 36. fxe4 {[%emt 0:00:04]} Rxe3 {[%emt 0:05:28]} 37. exd5 {[%emt 0:00:06]} Ra3 {[%emt 0:02:11]} 38. Kg1 {[%emt 0:01:23]} Kg6 {[%emt 0:00:22]} 39. Kf2 {[%emt 0:02:57]} Kf5 {[%emt 0:00:38]} 40. Ke2 {[%emt 0:02:10]} Kf4 {[%emt 0:04:59]} 41. d6 {[%emt 0:31:12]} e4 {[%emt 0:31:34]} 42. Ra8 {[%emt 0:00:54]} Kg3 {[%emt 0:01:58]} 43. Rc8 {[%emt 0:01:57]} Rxa5 {[%emt 0:00:41]} 44. Rc7 {[%emt 0:00:06]} Rxc7 {[%emt 0:01:07]} 45. dxc7 {[%emt 0:00:10]} Rc5 {[%emt 0:00:08]} 46. Rd7 {[%emt 0:00:18]} g5 {[%emt 0:00:47]} 47. Kd1 {[%emt 0:00:41]} e3 {[%emt 0:03:22]} 0-1

[Event "LAT-chT Higher League 2019"]
[Site "Riga"]
[Date "2019.10.12"]
[Round "7.12"]
[White "Mustaps, Matiss"]
[Black "Morozli, Grigorijs"]
[Result "1-0"]
[ECO "B01"]
[WhiteElo "2366"]
[BlackElo "1969"]
[Annotator "ChessBase"]
[PlyCount "63"]
[EventDate "2019.02.15"]
[EventType "team-tourn"]
[EventCountry "LAT"]
[SourceTitle "playchess.com"]
[Source "ChessBase"]
[SourceQuality "1"]
[TimeControl "40/5400+30:1800+30"]

1. e4 {[%emt 0:00:00]} d5 {[%emt 0:00:21]} 2. exd5 {[%emt 0:00:00]} Qxd5 {[%emt 0:00:13]} 3. Nc3 {[%emt 0:00:00]} Qa5 {[%emt 0:00:28]} 4. d4 {[%emt 0:00:00]} Nf6 {[%emt 0:00:48]} 5. Nf3 {[%emt 0:00:00]} Bf5 {[%emt 0:01:32]} 6. Bd2 {[%emt 0:03:29]} e6 {[%emt 0:00:40]} 7. Ne5 {[%emt 0:00:35]} c6 {[%emt 0:02:59]} 8. g4 {[%emt 0:01:40]} Bg6 {[%emt 0:02:02]} 9. h4 {[%emt 0:01:09]} Qb6 {[%emt 0:05:00]} 10. h5 {[%emt 0:04:03]} Be4 {[%emt 0:05:04]} 11. Nxe4 {[%emt 0:04:05]} Nxe4 {[%emt 0:00:33]} 12. Qf3 {[%emt 0:00:11]} Nf6 {[%emt 0:06:59]} 13. Bc3 {[%emt 0:21:13]} Nbd7 {[%emt 0:05:51]} 14. Nc4 {[%emt 0:04:18]} Qc7 {[%emt 0:01:55]} 15. g5 {[%emt 0:00:08]} Nd5 {[%emt 0:03:29]} 16. g6 {[%emt 0:00:40]} Qf4 {[%emt 0:09:53]} 17. gxf7+ {[%emt 0:01:00]} Qxf7 {[%emt 0:02:22]} 18. Qxf7+ {[%emt 0:00:43]} Kxf7 {[%emt 0:00:11]} 19. Bd2 {[%emt 0:00:39]} c5 {[%emt 0:05:18]} 20. Ne5+ {[%emt 0:02:42]} Nxe5 {[%emt 0:02:04]} 21. dxe5 {[%emt 0:00:01]} Be7 {[%emt 0:02:05]} 22. O-O-O {[%emt 0:00:30]} Bd8 {[%emt 0:03:36]} 23. c4 {[%emt 0:01:22]} Ne7 {[%emt 0:01:33]} 24. Be3 {[%emt 0:00:57]} Rc8 {[%emt 0:04:06]} 25. Bg2 {[%emt 0:01:43]} Rc7 {[%emt 0:00:56]} 26. Be4 {[%emt 0:00:08]} Nf5 {[%emt 0:06:39]} 27. Bxf5 {[%emt 0:00:18]} exf5 {[%emt 0:00:02]} 28. Bf4 {[%emt 0:01:27]} Re7 {[%emt 0:04:33]} 29. Bg5 {[%emt 0:00:48]} Ree8 {[%emt 0:00:44]} 30. e6+ {[%emt 0:00:38]} Kxe6 {[%emt 0:02:25]} 31. Rhe1+ {[%emt 0:01:09]} Kf7 {[%emt 0:00:05]} 32. Rd7+ {[%emt 0:00:13]} 1-0

[Event "LAT-chT Higher League 2019"]
[Site "Riga"]
[Date "2019.10.12"]
[Round "7.13"]
[White "Galkins, Semjons"]
[Black "Rogule, Laura"]
[Result "0-1"]
[ECO "A29"]
[WhiteElo "1735"]
[BlackElo "2269"]
[Annotator "NA"]
[PlyCount "94"]
[EventDate "2019.02.15"]
[EventType "team-tourn"]
[EventCountry "LAT"]
[SourceTitle "playchess.com"]
[Source "ChessBase"]
[SourceQuality "1"]
[TimeControl "40/5400+30:1800+30"]

1. c4 {[%emt 0:00:00]} e5 {[%emt 0:01:27]} 2. Nc3 {[%emt 0:00:12]} Nf6 {[%emt 0:01:41]} 3. Nf3 {[%emt 0:00:31]} Nc6 {[%emt 0:00:42]} 4. d3 {[%emt 0:00:58]} Be7 {[%emt 0:11:16]} 5. g3 {[%emt 0:00:46]} d5 {[%emt 0:01:05]} 6. cxd5 {[%emt 0:00:06]} Nxd5 {[%emt 0:00:04]} 7. Bg2 {[%emt 0:00:36]} Nb6 {[%emt 0:02:24]} 8. O-O {[%emt 0:02:26]} O-O {[%emt 0:01:49]} 9. Be3 {[%emt 0:06:48]} f5 {[%emt 0:05:45]} 10. Qd2 {[%emt 0:01:21]} h6 {[%emt 0:01:34]} 11. h4 {[%emt 0:04:11]} Be6 {[%emt 0:04:44]} 12. Rfd1 {[%emt 0:02:45]} Qe8 {[%emt 0:09:48]} 13. Bxb6 {[%emt 0:06:14]} axb6 {[%emt 0:00:38]} 14. Nb5 {[%emt 0:00:48]} Bd8 {[%emt 0:08:23]} 15. b3 {[%emt 0:03:43]} Ra5 {[%emt 0:02:12]} 16. Nc3 {[%emt 0:00:48]} Bf6 {[%emt 0:01:30]} 17. Rac1 {[%emt 0:01:15]} Qh5 {[%emt 0:01:57]} 18. e3 {[%emt 0:02:42]} g5 {[%emt 0:04:23]} 19. hxg5 {[%emt 0:00:38]} hxg5 {[%emt 0:00:08]} 20. Ne2 {[%emt 0:02:11]} Kg7 {[%emt 0:02:49]} 21. Kf1 {[%emt 0:00:56]} Bd5 {[%emt 0:02:31]} 22. Neg1 {[%emt 0:01:03]} g4 {[%emt 0:05:59]} 23. Ne1 {[%emt 0:00:05]} Bg5 {[%emt 0:01:04]} 24. Bxd5 {[%emt 0:01:45]} Rxd5 {[%emt 0:00:09]} 25. Ng2 {[%emt 0:00:58]} Qh1 {[%emt 0:05:03]} 26. Rc4 {[%emt 0:01:37]} b5 {[%emt 0:04:06]} 27. Rc3 {[%emt 0:02:01]} Nd4 {[%emt 0:06:15]} 28. Rxc7+ {[%emt 0:00:44]} Rf7 {[%emt 0:02:09]} 29. Rxf7+ {[%emt 0:00:14]} Kxf7 {[%emt 0:00:02]} 30. Qa5 {[%emt 0:04:43]} Nf3 {[%emt 0:00:13]} 31. Qc7+ {[%emt 0:00:10]} Kf6 {[%emt 0:06:03]} 32. Qb6+ {[%emt 0:06:44]} Ke7 {[%emt 0:00:36]} 33. Nh4 {[%emt 0:01:35]} Bxh4 {[%emt 0:00:43]} 34. gxh4 {[%emt 0:00:07]} Qxg1+ {[%emt 0:03:18]} 35. Ke2 {[%emt 0:00:02]} Qg2 {[%emt 0:01:07]} 36. Qc7+ {[%emt 0:02:07]} Rd7 {[%emt 0:00:28]} 37. Qc5+ {[%emt 0:01:24]} Ke6 {[%emt 0:01:23]} 38. Qf8 {[%emt 0:00:55]} Ng1+ {[%emt 0:00:34]} 39. Rxg1 {[%emt 0:00:03]} Qxg1 {[%emt 0:00:18]} 40. Qh6+ {[%emt 0:00:41]} Kd5 {[%emt 0:01:25]} 41. e4+ {[%emt 0:30:03]} fxe4 {[%emt 0:30:19]} 42. dxe4+ {[%emt 0:00:05]} Kc5 {[%emt 0:00:49]} 43. b4+ {[%emt 0:01:00]} Kxb4 {[%emt 0:00:12]} 44. Qf8+ {[%emt 0:00:13]} Ka5 {[%emt 0:00:36]} 45. Qa3+ {[%emt 0:00:55]} Kb6 {[%emt 0:00:01]} 46. Qe3+ {[%emt 0:00:19]} Rd4 {[%emt 0:00:11]} 47. Qh6+ {[%emt 0:00:05]} Ka7 {[%emt 0:00:22]} 0-1

[Event "LAT-chT Higher League 2019"]
[Site "Riga"]
[Date "2019.10.12"]
[Round "7.14"]
[White "Lavendelis, Egons"]
[Black "Janovskis, Daniels"]
[Result "1-0"]
[ECO "C56"]
[WhiteElo "2273"]
[BlackElo "1610"]
[Annotator "NA"]
[PlyCount "91"]
[EventDate "2019.02.15"]
[EventType "team-tourn"]
[EventCountry "LAT"]
[SourceTitle "playchess.com"]
[Source "ChessBase"]
[SourceQuality "1"]
[TimeControl "40/5400+30:1800+30"]

1. e4 {[%emt 0:00:00]} e5 {[%emt 0:00:00]} 2. Nf3 {[%emt 0:00:00]} Nc6 {[%emt 0:00:00]} 3. d4 {[%emt 0:00:00]} exd4 {[%emt 0:00:06]} 4. Bc4 {[%emt 0:00:00]} Nf6 {[%emt 0:00:28]} 5. e5 {[%emt 0:00:00]} d5 {[%emt 0:00:19]} 6. Bb5 {[%emt 0:00:05]} Ne4 {[%emt 0:00:19]} 7. Nxd4 {[%emt 0:00:07]} Bd7 {[%emt 0:00:45]} 8. Bxc6 {[%emt 0:00:45]} bxc6 {[%emt 0:00:28]} 9. O-O {[%emt 0:00:05]} Bc5 {[%emt 0:01:01]} 10. f3 {[%emt 0:00:05]} Ng5 {[%emt 0:00:25]} 11. Be3 {[%emt 0:00:05]} O-O {[%emt 0:03:24]} 12. Nc3 {[%emt 0:00:58]} Ne6 {[%emt 0:03:22]} 13. Na4 {[%emt 0:10:07]} Bb6 {[%emt 0:05:15]} 14. Qd2 {[%emt 0:03:48]} f6 {[%emt 0:09:07]} 15. Nxe6 {[%emt 0:04:11]} Bxe6 {[%emt 0:02:48]} 16. Nc5 {[%emt 0:04:47]} Qe7 {[%emt 0:03:36]} 17. exf6 {[%emt 0:00:45]} Rxf6 {[%emt 0:07:43]} 18. Qf2 {[%emt 0:06:02]} Qf8 {[%emt 0:07:47]} 19. a4 {[%emt 0:04:27]} a5 {[%emt 0:01:33]} 20. Nxe6 {[%emt 0:07:30]} Rxe6 {[%emt 0:00:31]} 21. Bxb6 {[%emt 0:00:04]} cxb6 {[%emt 0:00:09]} 22. Qxb6 {[%emt 0:00:19]} Rb8 {[%emt 0:05:25]} 23. Qxa5 {[%emt 0:05:11]} Rxb2 {[%emt 0:00:54]} 24. Qc3 {[%emt 0:04:32]} Qb8 {[%emt 0:06:09]} 25. Rfe1 {[%emt 0:00:33]} Rxe1+ {[%emt 0:02:16]} 26. Rxe1 {[%emt 0:00:33]} Qb6+ {[%emt 0:05:47]} 27. Kf1 {[%emt 0:04:23]} Rb1 {[%emt 0:02:05]} 28. Rxb1 {[%emt 0:06:36]} Qxb1+ {[%emt 0:00:21]} 29. Kf2 {[%emt 0:00:36]} Qb7 {[%emt 0:01:06]} 30. Qc5 {[%emt 0:02:40]} Qa6 {[%emt 0:02:24]} 31. a5 {[%emt 0:01:29]} Kf7 {[%emt 0:00:51]} 32. h3 {[%emt 0:03:34]} h6 {[%emt 0:02:51]} 33. Kg3 {[%emt 0:02:23]} Qe2 {[%emt 0:02:03]} 34. Qa7+ {[%emt 0:05:21]} Kg6 {[%emt 0:04:38]} 35. Qc7 {[%emt 0:06:32]} Kh7 {[%emt 0:01:53]} 36. Kh2 {[%emt 0:00:26]} Qc4 {[%emt 0:07:00]} 37. f4 {[%emt 0:00:55]} Kg6 {[%emt 0:03:18]} 38. Qd6+ {[%emt 0:00:55]} Kf7 {[%emt 0:01:51]} 39. f5 {[%emt 0:00:57]} Qa4 {[%emt 0:00:45]} 40. Qg6+ {[%emt 0:02:14]} Kf8 {[%emt 0:00:40]} 41. f6 {[%emt 0:30:36]} gxf6 {[%emt 0:32:05]} 42. Qxf6+ {[%emt 0:00:08]} Ke8 {[%emt 0:00:37]} 43. Qxh6 {[%emt 0:00:19]} Qxc2 {[%emt 0:00:22]} 44. a6 {[%emt 0:01:32]} Qa4 {[%emt 0:01:02]} 45. a7 {[%emt 0:00:38]} c5 {[%emt 0:02:06]} 46. a8=Q+ {[%emt 0:00:14]} 1-0

[Event "LAT-chT Higher League 2019"]
[Site "Riga"]
[Date "2019.10.12"]
[Round "7.15"]
[White "Parhomenko, Anastasija"]
[Black "Amerika, Katrina"]
[Result "0-1"]
[ECO "A46"]
[WhiteElo "1423"]
[BlackElo "2225"]
[Annotator "NA"]
[PlyCount "78"]
[EventDate "2019.02.15"]
[EventType "team-tourn"]
[EventCountry "LAT"]
[SourceTitle "playchess.com"]
[Source "ChessBase"]
[SourceQuality "1"]
[TimeControl "40/5400+30:1800+30"]

1. Nf3 {[%emt 0:00:00]} Nf6 {[%emt 0:00:00]} 2. d4 {[%emt 0:00:00]} g6 {[%emt 0:00:00]} 3. b3 {[%emt 0:00:25]} Bg7 {[%emt 0:00:00]} 4. Bb2 {[%emt 0:00:19]} d6 {[%emt 0:03:11]} 5. Nbd2 {[%emt 0:02:23]} b6 {[%emt 0:01:43]} 6. e4 {[%emt 0:01:13]} Bb7 {[%emt 0:00:19]} 7. Bd3 {[%emt 0:01:25]} O-O {[%emt 0:00:38]} 8. e5 {[%emt 0:02:09]} dxe5 {[%emt 0:06:15]} 9. dxe5 {[%emt 0:02:36]} Nfd7 {[%emt 0:03:42]} 10. h4 {[%emt 0:03:34]} Nc5 {[%emt 0:03:12]} 11. Bf1 {[%emt 0:05:25]} Nc6 {[%emt 0:04:35]} 12. h5 {[%emt 0:01:02]} Qd7 {[%emt 0:03:10]} 13. a3 {[%emt 0:02:53]} a5 {[%emt 0:07:49]} 14. hxg6 {[%emt 0:04:27]} hxg6 {[%emt 0:00:20]} 15. Rh4 {[%emt 0:01:27]} Rad8 {[%emt 0:07:33]} 16. Bb5 {[%emt 0:04:05]} Qf5 {[%emt 0:07:18]} 17. g4 {[%emt 0:06:27]} Qf4 {[%emt 0:05:39]} 18. Qe2 {[%emt 0:01:44]} Na7 {[%emt 0:11:41]} 19. a4 {[%emt 0:06:47]} Nxb5 {[%emt 0:03:05]} 20. axb5 {[%emt 0:00:13]} a4 {[%emt 0:08:22]} 21. bxa4 {[%emt 0:02:58]} Bxf3 {[%emt 0:00:57]} 22. Nxf3 {[%emt 0:02:25]} Qb4+ {[%emt 0:00:14]} 23. c3 {[%emt 0:01:42]} Qxb2 {[%emt 0:01:01]} 24. Qxb2 {[%emt 0:00:05]} Nd3+ {[%emt 0:00:03]} 25. Ke2 {[%emt 0:00:11]} Nxb2 {[%emt 0:00:03]} 26. g5 {[%emt 0:00:31]} Nd3 {[%emt 0:00:16]} 27. Re4 {[%emt 0:00:18]} Nc5 {[%emt 0:00:13]} 28. Rc4 {[%emt 0:00:44]} Rd5 {[%emt 0:00:42]} 29. a5 {[%emt 0:00:53]} bxa5 {[%emt 0:01:01]} 30. Rxa5 {[%emt 0:00:08]} Bxe5 {[%emt 0:00:17]} 31. Ra3 {[%emt 0:01:37]} Bd6 {[%emt 0:00:48]} 32. Ra7 {[%emt 0:01:06]} Ne6 {[%emt 0:00:13]} 33. Rb7 {[%emt 0:00:40]} Nxg5 {[%emt 0:00:13]} 34. Nd4 {[%emt 0:00:17]} e5 {[%emt 0:00:33]} 35. Nc2 {[%emt 0:00:34]} Ne6 {[%emt 0:00:48]} 36. Ra4 {[%emt 0:01:12]} Nf4+ {[%emt 0:00:29]} 37. Ke1 {[%emt 0:00:31]} Rd3 {[%emt 0:01:44]} 38. c4 {[%emt 0:00:15]} Ne6 {[%emt 0:00:56]} 39. Ne3 {[%emt 0:00:33]} Nc5 {[%emt 0:00:12]} 0-1

[Event "LAT-chT Higher League 2019"]
[Site "Riga"]
[Date "2019.10.12"]
[Round "8.1"]
[White "Meshkovs, Nikita"]
[Black "Ehlvest, Jaan"]
[Result "0-1"]
[ECO "E71"]
[WhiteElo "2548"]
[BlackElo "2511"]
[Annotator "ChessBase"]
[PlyCount "66"]
[EventDate "2019.02.15"]
[EventType "team-tourn"]
[EventCountry "LAT"]
[SourceTitle "playchess.com"]
[Source "ChessBase"]
[SourceQuality "1"]
[TimeControl "40/5400+30:1800+30"]

1. d4 {[%emt 0:00:00]} Nf6 {[%emt 0:01:29]} 2. c4 {[%emt 0:00:00]} d6 {[%emt 0:00:06]} 3. Nc3 {[%emt 0:00:00]} g6 {[%emt 0:00:33]} 4. e4 {[%emt 0:00:06]} Bg7 {[%emt 0:00:04]} 5. h3 {[%emt 0:00:07]} O-O {[%emt 0:00:18]} 6. Be3 {[%emt 0:00:07]} Na6 {[%emt 0:00:11]} 7. g4 {[%emt 0:00:19]} c5 {[%emt 0:11:50]} 8. Nge2 {[%emt 0:03:44]} b6 {[%emt 0:24:32]} 9. Bg2 {[%emt 0:01:03]} Bb7 {[%emt 0:01:25]} 10. d5 {[%emt 0:03:53]} Nc7 {[%emt 0:00:36]} 11. Ng3 {[%emt 0:05:11]} Ba6 {[%emt 0:15:37]} 12. Bf1 {[%emt 0:04:25]} e6 {[%emt 0:00:18]} 13. Qd2 {[%emt 0:05:47]} Nd7 {[%emt 0:08:56]} 14. f4 {[%emt 0:02:26]} Re8 {[%emt 0:08:38]} 15. O-O-O {[%emt 0:03:00]} exd5 {[%emt 0:02:30]} 16. exd5 {[%emt 0:20:04]} b5 {[%emt 0:00:45]} 17. cxb5 {[%emt 0:01:41]} Bb7 {[%emt 0:01:32]} 18. Bf2 {[%emt 0:25:38]} Nb6 {[%emt 0:04:32]} 19. Rg1 {[%emt 0:04:23]} a6 {[%emt 0:02:00]} 20. bxa6 {[%emt 0:05:27]} Bxa6 {[%emt 0:00:53]} 21. Bxa6 {[%emt 0:00:01]} Nxa6 {[%emt 0:06:02]} 22. a3 {[%emt 0:02:15]} Nb4 {[%emt 0:04:04]} 23. axb4 {[%emt 0:03:17]} cxb4 {[%emt 0:00:08]} 24. Nce4 {[%emt 0:02:28]} Qc8+ {[%emt 0:01:39]} 25. Bc5 {[%emt 0:05:36]} dxc5 {[%emt 0:00:57]} 26. Qc2 {[%emt 0:00:00]} c4 {[%emt 0:01:39]} 27. Nh5 {[%emt 0:00:01]} Ra1+ {[%emt 0:00:43]} 28. Kd2 {[%emt 0:00:01]} c3+ {[%emt 0:00:06]} 29. Ke2 {[%emt 0:01:13]} Rxd1 {[%emt 0:00:13]} 30. Kxd1 {[%emt 0:01:15]} Nxd5 {[%emt 0:00:55]} 31. Rg3 {[%emt 0:01:16]} cxb2 {[%emt 0:00:37]} 32. Nxg7 {[%emt 0:00:42]} Qxc2+ {[%emt 0:00:14]} 33. Kxc2 {[%emt 0:00:03]} Rxe4 {[%emt 0:00:06]} 0-1